Cogmind - Beta 14 @@@ ROGUE MODE // 2024.08.30 @ 05:25:09 Player: Daffa0360 Result: Destroyed by EI-JXV(R) with Subdweller Machine Gun Performance ------------- Evolutions (0) 0 Regions Visited (2) 400 Robots Destroyed (26) 130 Value Destroyed (508) 508 Prototype IDs (0) 0 Alien Tech Used (0) 0 Bonus (0) 0 TOTAL SCORE: 1038 Bonus ------- None Cogmind --------- Core Integrity 0/250 Matter 249/300 Energy 100/100 System Corruption 0% Temperature Cool (0) Movement Core (550) Ox10 Location -10/Subcaves Parts ------- > --- POWER (1) -------- Subdweller Power Source > --- PROPULSION (2) --- (None) > --- UTILITY (2) ------ Large Storage Unit Makeshift Light Armor Plating > --- WEAPON (2) ------- Battle Rifle > --- INVENTORY (15) --- Ion Engine Subdweller Power Source Subdweller Power Source Makeshift Leg Subdweller Monowheel Subdweller Monowheel Subdweller Monowheel Subdweller Optics Improved Terrain Scanner Seismic Detector Scrap Shield Makeshift System Restoration Module Dirty Datajack (20) Ripper Peak State ------------ > --- POWER ------------ Light Ion Engine > --- PROPULSION ------- Makeshift Leg Makeshift Leg > --- UTILITY ---------- Large Storage Unit Sensor Array > --- WEAPON ----------- Light Assault Rifle Subdweller Machine Gun > --- INVENTORY -------- Ion Engine Subdweller Power Source Subdweller Power Source Compact Wheel Subdweller Monowheel Subdweller Monowheel Improved Terrain Scanner Seismic Detector Scrap Shield Makeshift System Restoration Module Dirty Datajack Datajack Mining Laser [Rating: 17] Favorites ----------- Power Light Ion Engine Engine Light Ion Engine Propulsion Aluminum Leg Leg Aluminum Leg Wheel Compact Wheel Utility Large Storage Unit Device Sensor Array Storage Large Storage Unit Protection Makeshift Light Armor Plating Weapon Light Assault Rifle Energy Gun Small Laser Energy Cannon Subdweller Beam Cannon Ballistic Gun Light Assault Rifle Special Weapon Mining Laser Slashing Weapon Ripper Build | -11 -10 -10 ------- Run | Yrd Mat Sub Slots Evolved . | . . . Power . | . . . Propulsion . | . . . Utility . | . . . Weapon . | . . . Parts Attached 32 | 1 5 26 Power 4 | . . 4 Engine 4 | . . 4 Core . | . . . Reactor . | . . . Propulsion 6 | . 1 5 Treads . | . . . Leg 2 | . . 2 Wheel 4 | . 1 3 Hover . | . . . Flight . | . . . Utility 7 | . 3 4 Device 5 | . 2 3 Storage 1 | . 1 . Processor . | . . . Hackware . | . . . Protection 1 | . . 1 Artifact . | . . . Weapon 15 | 1 1 13 Energy Gun 1 | 1 . . Energy Cannon 1 | . . 1 Ballistic Gun 8 | . 1 7 Ballistic Cannon . | . . . Launcher . | . . . Special Weapon 4 | . . 4 Impact Weapon . | . . . Slashing Weapon 1 | . . 1 Piercing Weapon . | . . . Special Melee Weapon . | . . . Unidentified Prototypes . | . . . Parts Lost 7 | . . 7 Power 1 | . . 1 Propulsion 3 | . . 3 Utility 1 | . . 1 Weapon 2 | . . 2 Highest Loss Streak 4 | . . 4 To Critical Strikes . | . . . Average Slot Usage (%) 96 | . 99 95 Engine 13 | . 14 13 Leg 14 | . 18 13 Wheel 12 | . 9 13 Device 12 | . 13 12 Storage 14 | . 14 14 Energy Gun 7 | . 14 5 Ballistic Gun 15 | . 14 15 Special Weapon 2 | . . 3 Peak Build Rating 17 | 7 8 17 Average Rating 10 | 6 7 11 On Entrance 7 | 6 7 8 Naked Turns . | . . . Heaviest Build 38 | 10 26 38 Greatest Support 40 | 20 20 40 Greatest Overweight (x) 3 | . 1 3 Average Overweight (x) 1 | . . 1 Largest Inventory Capacity 15 | 8 15 15 Average Capacity 14 | 8 12 15 Most Carried 15 | 8 9 15 Average Carried 11 | 5 8 13 Final Capacity 15 | 8 15 15 Final Carried 15 | 8 9 15 Class Distribution -------------------- 100% | Mutant Dominant Class ---------------- Mutant | -10/Materials Mutant | -10/Subcaves Resources | -11 -10 -10 ----------- Run | Yrd Mat Sub Matter Collected 631 | 232 77 322 Remotely . | . . . Salvage Created 889 | 182 199 508 Parts 76 | 16 20 40 Haulers Intercepted 1 | . 1 . Recyclers Shooed 1 | 1 . . Parts Field Recycled . | . . . Retrieved Matter . | . . . Parts Self-Destructed 10 | . . 10 Prevented . | . . . Kills | -11 -10 -10 ------- Run | Yrd Mat Sub Combat Hostiles Destroyed 18 | . 7 11 Guns 17 | . 7 10 Cannons 1 | . . 1 Classes Destroyed 8 | 2 4 2 Tunneler 5 | 5 . . Hauler 1 | . 1 . Recycler 1 | 1 . . Watcher 1 | . 1 . Swarmer 9 | . 6 3 Grunt 1 | . 1 . Sentry 1 | . . 1 Subdweller 7 | . . 7 Best Kill Streak 3 | 3 3 3 Combat Bots Only 3 | . 3 3 Max Kills in Single Turn 2 | 1 1 2 Gunslinging 1 | . . 1 Exploded . | . . . Melee . | . . . Uniques/NPCs Destroyed . | . . . Combat | -11 -10 -10 -------- Run | Yrd Mat Sub Hostile Shots Fired 88 | . 32 56 Missed 27 | . 8 19 Damage Taken 1130 | . 199 931 Core 260 | . 38 222 Absorbed by Shields . | . . . Core Remaining (%) 100 | 100 . . Volleys Fired 128 | 25 25 78 Largest 2 | 2 2 2 Hottest 110 | 60 60 110 Shots Fired 210 | 47 50 113 Gun 177 | 47 50 80 Cannon 8 | . . 8 Launcher . | . . . Special 25 | . . 25 Kinetic 127 | 25 25 77 Thermal 83 | 22 25 36 Explosive . | . . . Electromagnetic . | . . . Robot Hit Streak 23 | 6 6 23 Robot Miss Streak 4 | 2 4 3 Penetration Max . | . . . Secondary Targets 3 | . 1 2 Max Gunslinging Chain 1 | . 1 1 Shots Hit Robots 114 | 27 26 61 Core Hits 49 | 9 15 25 Critical Kills 1 | . . 1 Critical Parts Destroyed 1 | . 1 . Critical Strikes 2 | . 1 1 Destroy 2 | . 1 1 Melee Attacks 1 | . . 1 Impact . | . . . Slashing 1 | . . 1 Piercing . | . . . Sneak Attacks . | . . . Combat Hostiles . | . . . Follow-up Attacks . | . . . Damage Inflicted 1556 | 256 253 1047 Guns 1420 | 256 253 911 Cannons 136 | . . 136 Explosions . | . . . Melee . | . . . Ramming . | . . . Kinetic 1106 | 112 115 879 Thermal 450 | 144 138 168 Explosive . | . . . Electromagnetic . | . . . Impact . | . . . Slashing . | . . . Piercing . | . . . Highest Corruption . | . . . Average Corruption . | . . . Corruption Purged . | . . . Corruption Blocked . | . . . Overload Shots . | . . . Overflow Damage . | . . . Projectiles . | . . . Explosions . | . . . Melee . | . . . Knockbacks . | . . . Impact . | . . . Kinetic . | . . . Secondary . | . . . Self-Inflicted Damage . | . . . Shots . | . . . Rammed . | . . . Targets Rammed . | . . . Kicked . | . . . Crushed . | . . . Highest Temperature 46 | 40 46 . Average Temperature 19 | 18 20 . Received Heat Transfer 78 | . 6 72 Siege Activations . | . . . Robots Corrupted . | . . . Combat Hostiles . | . . . Parts Fried . | . . . Impact Corruptions . | . . . Robots Melted . | . . . Combat Hostiles . | . . . Parts Melted . | . . . Heat Transferred 910 | 325 325 260 Parts Sabotaged . | . . . Parts Stolen . | . . . Parts Stripped . | . . . Power Chain Reactions . | . . . Alert | -11 -10 -10 ------- Run | Yrd Mat Sub Peak Influence 246 | 30 246 . Initial 19 | . 19 . Average 88 | 16 105 . Maximum Alert Level 1 | . 1 . Low Security (%) 84 | 100 80 . Level 1 15 | . 19 . Level 2 . | . . . Level 3 . | . . . Level 4 . | . . . Level 5 . | . . . High Security . | . . . Max Security . | . . . Squads Dispatched . | . . . Investigation . | . . . Extermination . | . . . Reinforcement . | . . . Assault . | . . . Garrison . | . . . Intercept . | . . . Searches Triggered . | . . . Construction Impeded . | . . . Haulers Reinforced . | . . . Active Scanning Responses . | . . . Cargo Convoy Interrupts . | . . . Stealth | -11 -10 -10 --------- Run | Yrd Mat Sub Distress Signals 1 | . 1 . Communications Jammed . | . . . Distress Signals . | . . . Times Spotted 27 | . 12 15 Peak Tracking Total 4 | . 4 3 Tactical Retreats 2 | . 1 1 Traps | -11 -10 -10 ------- Run | Yrd Mat Sub Traps Triggered . | . . . Indirectly . | . . . Trap Hack Attempts . | . . . Triggered . | . . . Disarmed . | . . . Reprogrammed . | . . . Reused . | . . . Traps Extracted . | . . . Installed . | . . . Triggered . | . . . Machines | -11 -10 -10 ---------- Run | Yrd Mat Sub Machines Disabled . | . . . Max in Single Turn . | . . . Machines Repaired . | . . . Machines Dismantled . | . . . Machines Sabotaged . | . . . Overloaded Fab Kills . | . . . Hacking | -11 -10 -10 --------- Run | Yrd Mat Sub Machines Accessed 2 | . 1 1 Terminals 1 | . 1 . Fabricators . | . . . Repair Stations . | . . . Recycling Units . | . . . Scanalyzers . | . . . Garrison Access . | . . . Total Hacks 6 | . 2 4 Successful 4 | . . 4 Failed 2 | . 2 . Catastrophic . | . . . Database Lockouts . | . . . Manual . | . . . Terminals 2 | . 2 . Fabricators . | . . . Repair Stations . | . . . Recycling Units . | . . . Scanalyzers . | . . . Garrison Access . | . . . Terminal Hacks 4 | . . 4 Record 4 | . . 4 Fabricator Hacks . | . . . Repair Station Hacks . | . . . Recycling Unit Hacks . | . . . Scanalyzer . | . . . Garrison Access Hacks . | . . . Unauthorized Hacks . | . . . Terminals . | . . . Fabricators . | . . . Repair Stations . | . . . Recycling Units . | . . . Scanalyzers . | . . . Garrison Access . | . . . Data Cores Recovered . | . . . Used . | . . . Hacking Detections 1 | . 1 . Full Trace Events . | . . . Feedback Events . | . . . Feedback Blocked . | . . . Robot Schematics Acquired . | . . . Robots Built . | . . . Authchips . | . . . Time . | . . . Total Robot Build Rating . | . . . Part Schematics Acquired . | . . . Parts Built . | . . . Authchips . | . . . Time . | . . . Total Part Build Rating . | . . . Parts Repaired . | . . . Time . | . . . Parts Recycled . | . . . Recycled Matter . | . . . Retrieved Matter . | . . . Retrieved Components . | . . . Parts Scanalyzed . | . . . Part Schematics Acquired . | . . . Parts Damaged . | . . . Bothacking | -11 -10 -10 ------------ Run | Yrd Mat Sub Used RIF Installer . | . . . Robots Hacked . | . . . Non-combat . | . . . Combat . | . . . Robot Hacks Applied . | . . . Relay Couplers Released . | . . . Fabnet Peak Effective % . | . . . Robots Rewired . | . . . Allies Hacked . | . . . Hacks Repelled . | . . . Allies | -11 -10 -10 -------- Run | Yrd Mat Sub Total Allies . | . . . Largest Group . | . . . Highest-Rated Group . | . . . Highest-Rated Ally . | . . . Total Orders . | . . . Ally Attacks . | . . . Total Damage . | . . . Kills . | . . . Allies Corrupted . | . . . Allies Melted . | . . . Intel | -11 -10 -10 ------- Run | Yrd Mat Sub Robot Analysis Total . | . . . Derelict Logs Recovered 2 | . . 2 Drone Launches . | . . . Drone Recoveries . | . . . Exploration | -11 -10 -10 ------------- Run | Yrd Mat Sub Turns Passed 2660 | 169 686 1805 Spaces Moved 1592 | 74 338 1180 Core . | . . . Treads . | . . . Legs 243 | 74 117 52 Wheels 1349 | . 221 1128 Hover . | . . . Flight . | . . . Fastest Speed 110 | 120 115 110 Average Speed 117 | 120 116 117 Slowest Speed 210 | 120 120 210 Overloaded Moves . | . . . Propulsion Burnouts . | . . . Robots Hopped . | . . . Cave-ins Triggered . | . . . Exploration Rate (%) 38 | 4 43 67 Regions Visited 2 Branch Regions 1 Pre-discovered Areas . | . . . Known Exits Taken . | . . . Unknown Exits Taken 2 | 1 1 . Scrap Searched 6 | . . 6 Spaces Dug . | . . . Terrain Destroyed 2 | . . 2 Melee . | . . . Projectile 2 | . . 2 AOE . | . . . Terrain Rammed . | . . . Walls Destroyed . | . . . Machines Disabled . | . . . Actions | -11 -10 -10 --------- Run | Yrd Mat Sub Total 2136 | 114 586 1436 Wait 329 | 6 205 118 Move 1590 | 73 337 1180 Hop . | . . . Pick Up 32 | 5 8 19 Fast Attach 1 | . . 1 Attach 13 | 1 3 9 Detach 2 | 1 . 1 Swap 18 | . 2 16 Drop 22 | 3 6 13 Fire 128 | 25 25 78 Melee 1 | . . 1 Ram . | . . . Kick . | . . . Crush . | . . . Escape Stasis . | . . . Rewire . | . . . Trap . | . . . Miscellaneous . | . . . Route ------- -11/Scrapyard -10/Materials (discovered 3 exits: [*Mat] / [*Min] / *Sub) -10/Subcaves (discovered 2 exits: [*Mat x2]) History --------- Turn | Location | Event 7 | -11/Scrapyard | Discovered new exit (range 3) 170 | -11/Scrapyard | Entered Materials 203 | -10/Materials | Discovered new exit (range 9) 308 | -10/Materials | Build established: Mutant 630 | -10/Materials | Discovered new exit (range 15) 839 | -10/Materials | Discovered new exit (range 5) 856 | -10/Materials | Entered Subcaves 1256 | -10/Subcaves | Learned Materials terminal intel 1357 | -10/Subcaves | Visited Clippyterm 1360 | -10/Subcaves | Learned Factory fabricator intel 1410 | -10/Subcaves | Discovered new exit (range 8) 1505 | -10/Subcaves | Discovered new exit (range 16) 1564 | -10/Subcaves | Shifting Twisted Machinery released Sub. Laser 1578 | -10/Subcaves | Shifting Twisted Machinery released Sub. Power Source 1867 | -10/Subcaves | Shifting Twisted Machinery released Sub. Laser 1894 | -10/Subcaves | Shifting Twisted Machinery released Battle Cannon 2044 | -10/Subcaves | Core integrity fell below 50% 2074 | -10/Subcaves | Lost 4 parts (1p1n1u1w) 2463 | -10/Subcaves | Ambushed by Subdweller buried in earth 2564 | -10/Subcaves | Disturbed a concealed Subdweller 2580 | -10/Subcaves | Core integrity fell below 20% 2661 | -10/Subcaves | Destroyed by EI-JXV(R) with Subdweller Machine Gun Last Messages --------------- 02584_ Found 70 Matter. 02585_ Searching scrap... 02585_ Found Battle Rifle. 02585_ Found 42 Matter. 02586_ Searching scrap... 02586_ Found Mak. Light Armor Plating. 02586_ Found 39 Matter. 02591_ Acquired Mak. Light Armor Plating. 02595_ Dropped Sub. Machine Gun. 02599_ Acquired Mak. Shrapnel Gun. 02601_ Searching scrap... 02601_ Found Ripper. 02601_ Found 58 Matter. 02602_ Acquired 10 matter. 02604_ Acquired Ripper. 02606_ Dropped Mining Laser. 02618_ Acquired Battle Rifle. 02623_ Acquired 10 matter. 02654_ Com. Wheel destroyed. 02659_ Mak. Shrapnel Gun destroyed. Map ----- +----------------------------------------------------+ | ?????????????????????????### ## #?????????????? | | ??????????????????????????## #?##?????????????? | | ??????????????????????##### #????????????????? | | ?????????????????????##""# #????????????????? | | ????????????????###??#"" #????????????????? | | ????????????????# ### #????????????????? | | ????????????????# ## ##????????????????? | | ??????????#####?# " "" " """#?????????????????? | | ?????????## ### " ##" "" "#?????????????????? | | ????????## " ##" """"#?????????????????? | | ????????# " "#" """##????????????????? | | ????????# ## #### ## #"""##???????????????? | | ????????# #####??## ###"" ####????????????? | | ????????## #?????# ###"""" """""##???????????? | | ????????# ##?##?## # """" "" #???????????? | | ????????# ##?# ## # """""] ##???????????? | | ????????## #?# ##"##"""" "##????????????? | | ????????##"##### # ########" " #""#?????????????? | | ????????# ""## ###??????### "##""#????????????? | | ????????## ##??###???### ##?"" "???????????? | | ????????#""# "##??##"##### "#??"# ??????????? | | ???????##" # ######"" ## #??? ? ??????????? | | ???????#""" "### "" """""#????????????????? | | ???????# ## ## #"""""#????????????????? | | ???????# "### #####""""## #?????????????? | | ???????# ### #### # @#""""" #?????????????? | | ???????## ##?# ##"%## """""# ???????????????? | | ????????# #??# #"% "## # R #????????????????? | | ???????## &#### #""[%"# ###### #????????????????? | | ???????#" ## ##&="## #?????? #????????????????? | | ???????## ## ###|#% #????????????????????????? | | ????????## ## &%!%! #????????????????????????? | | ?????????## ############????????????????????????? | | ??????????# #???????????????????????????????????? | | ?????????## #???????????????????????????????????? | | ?????????# ##???????????????????????????????????? | | ?????????####????????????????????????????????????? | | ?????????????????????????????????????????????????? | | ?????????????????????????????????????????????????? | | ?????????????????????????????????????????????????? | | ?????????????????????????????????????????????????? | | ?????????????????????????????????????????????????? | | ?????????????????????????????????????????????????? | | ?????????????????????????????????????????????????? | | ?????????????????????????????????????????????????? | | ?????????????????????????????????????????????????? | | ?????????????????????????????????????????????????? | | ?????????????????????????????????????????????????? | | ?????????????????????????????????????????????????? | | ?????????????????????????????????????????????????? | +----------------------------------------------------+ Best States ------------- Heat Dissipation 25 Energy Generation 15 Energy Capacity 200 Matter Stores 300 Matter Capacity 300 Sight Range 16 Robot Scan Range 14 Terrain Scan Density 10 Armor Coverage 100 Evasion (%) 55 Item Schematics ----------------- None Robot Schematics ------------------ None Fabricated ------------ Nothing Alien Tech Used ----------------- None Achievements -------------- None Challenges ------------ None Game ------ Seed AerolevAmuletPick Manual? 0 Play Time 00:15:04 Cumulative 78.2 hours Start 2024.08.30 @ 05:04:55 End 2024.08.30 @ 05:25:09 Sessions 1 Manual Loads 0 Difficulty Rogue Special Mode None Game No. 131 Rogue 127 Adventurer 4 Explorer 0 Win Type - Total 0 Types 0/0/0/0/0/0/0/0/0 Lore% 37 Gallery% 46 Achievement% 35 Wizard Run 0 Options --------- Layout 2 ASCII 0 Keyboard 0 Movement Mouse Keybinds 0 Fullscreen 2 Font 24/Smallcaps Map View 50x44 Zoom Use 0% Tactical HUD 1 Map Filters NONE Filters NONE Steam 1 RUN: b680a386-61a5-4228-b498-5e08d6ede1cc